[Event "Titled Tuesday Blitz June 28 Late 2022"]
[White "Kapitsyn, Mark"]
[Black "Mortazavi, Ali"]
[WhiteFideId "4116240"]
[BlackFideId "401323"]
[WhiteElo "2299"]
[BlackElo "2339"]
[Result "0-1"]
[Round "02"]
[TimeControl "180+1"]
[Date "2022.06.29"]
[WhiteClock "0:00:02"]
[BlackClock "0:00:25"]

1. e4 {[%clk 0:03:00]}  c6 {[%clk 0:02:59]} 2. c4 {[%clk 0:03:00]}  e5 {[%clk 0:02:59]} 3. Nf3 {[%clk 0:02:59]}  d6 {[%clk 0:02:59]} 4. d4 {[%clk 0:02:57]}  Nd7 {[%clk 0:02:59]} 5. Nc3 {[%clk 0:02:55]}  Ngf6 {[%clk 0:03:00]} 6. g3 {[%clk 0:02:55]}  g6 {[%clk 0:02:59]} 7. Bg2 {[%clk 0:02:55]}  Bg7 {[%clk 0:03:00]} 8. O-O {[%clk 0:02:56]}  O-O {[%clk 0:03:00]} 9. Re1 {[%clk 0:02:53]}  Qa5 {[%clk 0:03:01]} 10. Rb1 {[%clk 0:02:42]}  exd4 {[%clk 0:02:50]} 11. Nxd4 {[%clk 0:02:42]}  Ne5 {[%clk 0:02:49]} 12. Qe2 {[%clk 0:01:55]}  Qc5 {[%clk 0:02:46]} 13. Nf3 {[%clk 0:01:30]}  Qxc4 {[%clk 0:02:37]} 14. Nxe5 {[%clk 0:01:19]}  Qxe2 {[%clk 0:02:36]} 15. Rxe2 {[%clk 0:01:16]}  dxe5 {[%clk 0:02:37]} 16. Be3 {[%clk 0:01:13]}  Be6 {[%clk 0:02:22]} 17. Rd1 {[%clk 0:01:09]}  b6 {[%clk 0:02:19]} 18. Red2 {[%clk 0:01:07]}  Rfe8 {[%clk 0:02:14]} 19. f3 {[%clk 0:01:05]}  Bf8 {[%clk 0:02:12]} 20. Bf1 {[%clk 0:00:56]}  Be7 {[%clk 0:02:10]} 21. Ba6 {[%clk 0:00:50]}  Rad8 {[%clk 0:02:10]} 22. Bb7 {[%clk 0:00:46]}  Rxd2 {[%clk 0:02:09]} 23. Rxd2 {[%clk 0:00:47]}  c5 {[%clk 0:02:00]} 24. Nb5 {[%clk 0:00:39]}  Bxa2 {[%clk 0:01:52]} 25. Nxa7 {[%clk 0:00:33]}  Rb8 {[%clk 0:01:44]} 26. Bd5 {[%clk 0:00:28]}  Nxd5 {[%clk 0:01:27]} 27. exd5 {[%clk 0:00:28]}  Bd6 {[%clk 0:01:27]} 28. Nc6 {[%clk 0:00:21]}  Ra8 {[%clk 0:01:22]} 29. Bg5 {[%clk 0:00:16]}  f5 {[%clk 0:01:06]} 30. Be7 {[%clk 0:00:14]}  Bxe7 {[%clk 0:01:04]} 31. Nxe7+ {[%clk 0:00:15]}  Kf7 {[%clk 0:01:05]} 32. d6 {[%clk 0:00:13]}  Ke6 {[%clk 0:00:56]} 33. Nc6 {[%clk 0:00:10]}  Bd5 {[%clk 0:00:50]} 34. d7 {[%clk 0:00:10]}  Kxd7 {[%clk 0:00:42]} 35. Nxe5+ {[%clk 0:00:08]}  Ke6 {[%clk 0:00:42]} 36. Nd3 {[%clk 0:00:07]}  Bxf3 {[%clk 0:00:37]} 37. Nf4+ {[%clk 0:00:06]}  Ke5 {[%clk 0:00:37]} 38. Kf2 {[%clk 0:00:06]}  Be4 {[%clk 0:00:37]} 39. h4 {[%clk 0:00:06]}  Ra2 {[%clk 0:00:33]} 40. Ke3 {[%clk 0:00:04]}  b5 {[%clk 0:00:31]} 41. Rd7 {[%clk 0:00:04]}  Rxb2 {[%clk 0:00:31]} 42. Re7+ {[%clk 0:00:03]}  Kd6 {[%clk 0:00:30]} 43. Re6+ {[%clk 0:00:03]}  Kd7 {[%clk 0:00:30]} 44. Rb6 {[%clk 0:00:02]}  Rb3+ {[%clk 0:00:30]} 45. Kf2 {[%clk 0:00:01]}  Rxg3 {[%clk 0:00:29]} 46. Ke2 {[%clk 0:00:02]}  Rg4 {[%clk 0:00:25]} 0-1


[Site "https://www.chess.com"]

[Event "Titled Tuesday Blitz June 28 Late 2022"]
[White "Katz, Alexander"]
[Black "Svane, Rasmus"]
[WhiteFideId "2039796"]
[BlackFideId "4657101"]
[WhiteElo "2371"]
[BlackElo "2674"]
[Result "0-1"]
[Round "02"]
[TimeControl "180+1"]
[Date "2022.06.28"]
[WhiteClock "0:00:26"]
[BlackClock "0:01:33"]

1. e4 {[%clk 0:02:59]}  c6 {[%clk 0:02:59]} 2. d4 {[%clk 0:02:59]}  d5 {[%clk 0:03:00]} 3. Nc3 {[%clk 0:03:00]}  dxe4 {[%clk 0:03:01]} 4. Nxe4 {[%clk 0:03:00]}  Nf6 {[%clk 0:03:02]} 5. Nxf6+ {[%clk 0:03:01]}  exf6 {[%clk 0:03:02]} 6. c3 {[%clk 0:03:01]}  Bd6 {[%clk 0:03:03]} 7. Bd3 {[%clk 0:03:02]}  O-O {[%clk 0:03:04]} 8. Qc2 {[%clk 0:03:02]}  Re8+ {[%clk 0:03:05]} 9. Ne2 {[%clk 0:03:03]}  h5 {[%clk 0:03:06]} 10. Bd2 {[%clk 0:03:03]}  Nd7 {[%clk 0:03:06]} 11. O-O-O {[%clk 0:03:04]}  Nf8 {[%clk 0:03:02]} 12. Ng3 {[%clk 0:03:04]}  g6 {[%clk 0:03:02]} 13. Kb1 {[%clk 0:03:04]}  Be6 {[%clk 0:03:01]} 14. Rde1 {[%clk 0:03:03]}  b5 {[%clk 0:03:00]} 15. Ne4 {[%clk 0:03:01]}  a5 {[%clk 0:03:00]} 16. f4 {[%clk 0:02:54]}  f5 {[%clk 0:02:56]} 17. Ng5 {[%clk 0:02:52]}  Bd5 {[%clk 0:02:56]} 18. Rxe8 {[%clk 0:02:44]}  Qxe8 {[%clk 0:02:57]} 19. Re1 {[%clk 0:02:44]}  Qd7 {[%clk 0:02:57]} 20. c4 {[%clk 0:02:37]}  Bxg2 {[%clk 0:02:41]} 21. Rg1 {[%clk 0:02:28]}  bxc4 {[%clk 0:02:32]} 22. Bxf5 {[%clk 0:01:25]}  Qxf5 {[%clk 0:02:33]} 23. Qxf5 {[%clk 0:01:23]}  gxf5 {[%clk 0:02:34]} 24. Rxg2 {[%clk 0:01:23]}  Ng6 {[%clk 0:02:34]} 25. Nf3 {[%clk 0:01:21]}  Kf8 {[%clk 0:02:29]} 26. Ne5 {[%clk 0:01:21]}  Bxe5 {[%clk 0:02:27]} 27. dxe5 {[%clk 0:01:19]}  Ke7 {[%clk 0:02:19]} 28. Rg5 {[%clk 0:01:19]}  Ke6 {[%clk 0:02:09]} 29. Rxh5 {[%clk 0:01:19]}  Rd8 {[%clk 0:01:55]} 30. Bxa5 {[%clk 0:01:18]}  Rd4 {[%clk 0:01:55]} 31. Bb6 {[%clk 0:01:07]}  Rxf4 {[%clk 0:01:53]} 32. a4 {[%clk 0:01:07]}  Rf1+ {[%clk 0:01:37]} 33. Ka2 {[%clk 0:01:06]}  Nxe5 {[%clk 0:01:37]} 34. a5 {[%clk 0:01:05]}  Nd3 {[%clk 0:01:37]} 35. Rh6+ {[%clk 0:01:00]}  f6 {[%clk 0:01:34]} 36. b3 {[%clk 0:00:26]}  c3 {[%clk 0:01:33]} 0-1


[Site "https://www.chess.com"]

[Event "Titled Tuesday Blitz June 28 Late 2022"]
[White "Khan, Taffin"]
[Black "Zhu, Jiner"]
[WhiteFideId "19700024"]
[BlackFideId "8608059"]
[WhiteElo "1966"]
[BlackElo "2281"]
[Result "0-1"]
[Round "02"]
[TimeControl "180+1"]
[Date "2022.06.29"]
[WhiteClock "0:00:03"]
[BlackClock "0:00:07"]

1. e4 {[%clk 0:02:59]}  e5 {[%clk 0:02:59]} 2. Bc4 {[%clk 0:02:56]}  c6 {[%clk 0:02:56]} 3. d3 {[%clk 0:02:51]}  d5 {[%clk 0:02:54]} 4. Bb3 {[%clk 0:02:51]}  Nf6 {[%clk 0:02:53]} 5. Nd2 {[%clk 0:02:44]}  Bd6 {[%clk 0:02:48]} 6. Ngf3 {[%clk 0:02:43]}  O-O {[%clk 0:02:47]} 7. O-O {[%clk 0:02:43]}  Re8 {[%clk 0:02:45]} 8. c3 {[%clk 0:02:40]}  Be6 {[%clk 0:02:39]} 9. Re1 {[%clk 0:02:39]}  Nbd7 {[%clk 0:02:38]} 10. Qe2 {[%clk 0:02:35]}  h6 {[%clk 0:02:37]} 11. Nf1 {[%clk 0:02:34]}  a5 {[%clk 0:02:35]} 12. Ng3 {[%clk 0:02:33]}  a4 {[%clk 0:02:35]} 13. Bc2 {[%clk 0:02:32]}  b5 {[%clk 0:02:25]} 14. h3 {[%clk 0:02:30]}  a3 {[%clk 0:02:10]} 15. b3 {[%clk 0:02:29]}  Qc7 {[%clk 0:02:04]} 16. Nh4 {[%clk 0:02:23]}  Bf8 {[%clk 0:01:59]} 17. Ngf5 {[%clk 0:02:10]}  Kh7 {[%clk 0:01:55]} 18. g4 {[%clk 0:02:04]}  g6 {[%clk 0:01:44]} 19. Ng3 {[%clk 0:02:04]}  Ng8 {[%clk 0:01:42]} 20. Ng2 {[%clk 0:02:03]}  Bg7 {[%clk 0:01:41]} 21. h4 {[%clk 0:01:33]}  dxe4 {[%clk 0:01:32]} 22. dxe4 {[%clk 0:01:32]}  Rad8 {[%clk 0:01:22]} 23. h5 {[%clk 0:01:32]}  Qd6 {[%clk 0:01:09]} 24. Be3 {[%clk 0:01:25]}  Qe7 {[%clk 0:01:07]} 25. Rad1 {[%clk 0:01:14]}  Ndf6 {[%clk 0:00:59]} 26. f3 {[%clk 0:01:03]}  Rxd1 {[%clk 0:00:47]} 27. Rxd1 {[%clk 0:01:03]}  Rd8 {[%clk 0:00:47]} 28. Rxd8 {[%clk 0:01:02]}  Qxd8 {[%clk 0:00:48]} 29. hxg6+ {[%clk 0:01:01]}  fxg6 {[%clk 0:00:48]} 30. Bc5 {[%clk 0:01:00]}  Bf8 {[%clk 0:00:45]} 31. Bxf8 {[%clk 0:00:54]}  Qxf8 {[%clk 0:00:46]} 32. Qe3 {[%clk 0:00:45]}  Nd7 {[%clk 0:00:46]} 33. Kf2 {[%clk 0:00:44]}  Bxg4 {[%clk 0:00:44]} 34. Ke2 {[%clk 0:00:41]}  Be6 {[%clk 0:00:43]} 35. f4 {[%clk 0:00:31]}  exf4 {[%clk 0:00:39]} 36. Nxf4 {[%clk 0:00:30]}  Bg4+ {[%clk 0:00:38]} 37. Kd2 {[%clk 0:00:29]}  Ne5 {[%clk 0:00:38]} 38. Qa7+ {[%clk 0:00:21]}  Kh8 {[%clk 0:00:31]} 39. Ke3 {[%clk 0:00:19]}  Qd6 {[%clk 0:00:22]} 40. Qd4 {[%clk 0:00:16]}  Qxd4+ {[%clk 0:00:16]} 41. Kxd4 {[%clk 0:00:16]}  Nf3+ {[%clk 0:00:16]} 42. Kc5 {[%clk 0:00:16]}  g5 {[%clk 0:00:15]} 43. Ng6+ {[%clk 0:00:13]}  Kg7 {[%clk 0:00:15]} 44. e5 {[%clk 0:00:08]}  Ne1 {[%clk 0:00:08]} 45. Bb1 {[%clk 0:00:07]}  h5 {[%clk 0:00:07]} 46. Kxc6 {[%clk 0:00:07]}  h4 {[%clk 0:00:08]} 47. Ne4 {[%clk 0:00:05]}  Kxg6 {[%clk 0:00:05]} 48. Nf2+ {[%clk 0:00:05]}  Bf5 {[%clk 0:00:05]} 49. Bxf5+ {[%clk 0:00:04]}  Kxf5 {[%clk 0:00:06]} 50. Kxb5 {[%clk 0:00:03]}  g4 {[%clk 0:00:06]} 51. c4 {[%clk 0:00:03]}  g3 {[%clk 0:00:06]} 52. Nh3 {[%clk 0:00:03]}  Kxe5 {[%clk 0:00:06]} 53. c5 {[%clk 0:00:03]}  Ne7 {[%clk 0:00:07]} 0-1


[Site "https://www.chess.com"]

[Event "Titled Tuesday Blitz June 28 Late 2022"]
[White "Koellner, Ruben Gideon"]
[Black "Steinberg, Nitzan"]
[WhiteFideId "12993093"]
[BlackFideId "2801795"]
[WhiteElo "2582"]
[BlackElo "2471"]
[Result "0-1"]
[Round "02"]
[TimeControl "180+1"]
[Date "2022.06.28"]
[WhiteClock "0:00:26"]
[BlackClock "0:00:39"]

1. d4 {[%clk 0:03:00]}  g6 {[%clk 0:02:59]} 2. Nf3 {[%clk 0:03:00]}  Bg7 {[%clk 0:02:59]} 3. Nbd2 {[%clk 0:03:01]}  d5 {[%clk 0:02:59]} 4. e3 {[%clk 0:03:01]}  c5 {[%clk 0:02:59]} 5. dxc5 {[%clk 0:03:00]}  Nc6 {[%clk 0:02:59]} 6. a3 {[%clk 0:02:53]}  a5 {[%clk 0:02:53]} 7. Bb5 {[%clk 0:02:46]}  Nf6 {[%clk 0:02:47]} 8. O-O {[%clk 0:02:32]}  O-O {[%clk 0:02:47]} 9. Rb1 {[%clk 0:02:28]}  Re8 {[%clk 0:02:32]} 10. c4 {[%clk 0:02:23]}  Bf5 {[%clk 0:02:26]} 11. Ra1 {[%clk 0:02:17]}  e5 {[%clk 0:02:22]} 12. cxd5 {[%clk 0:01:51]}  Qxd5 {[%clk 0:02:21]} 13. e4 {[%clk 0:01:48]}  Nxe4 {[%clk 0:02:03]} 14. Nxe4 {[%clk 0:01:47]}  Bxe4 {[%clk 0:01:55]} 15. Qxd5 {[%clk 0:01:42]}  Bxd5 {[%clk 0:01:56]} 16. Rd1 {[%clk 0:01:36]}  Bb3 {[%clk 0:01:35]} 17. Rd3 {[%clk 0:01:16]}  a4 {[%clk 0:01:35]} 18. Nd2 {[%clk 0:01:01]}  Red8 {[%clk 0:01:32]} 19. Nxb3 {[%clk 0:00:53]}  Rxd3 {[%clk 0:01:28]} 20. Bxd3 {[%clk 0:00:54]}  axb3 {[%clk 0:01:28]} 21. Bc4 {[%clk 0:00:48]}  Na5 {[%clk 0:01:26]} 22. Bb5 {[%clk 0:00:41]}  Rd8 {[%clk 0:01:17]} 23. Be3 {[%clk 0:00:35]}  f5 {[%clk 0:01:06]} 24. g3 {[%clk 0:00:29]}  e4 {[%clk 0:01:03]} 25. Rb1 {[%clk 0:00:28]}  Kf7 {[%clk 0:01:01]} 26. Kf1 {[%clk 0:00:26]}  Ke6 {[%clk 0:00:54]} 27. Ke2 {[%clk 0:00:26]}  Rd5 {[%clk 0:00:39]} 0-1


[Site "https://www.chess.com"]

[Event "Titled Tuesday Blitz June 28 Late 2022"]
[White "Kostiukov, Alexandr"]
[Black "Preotu, Razvan"]
[WhiteFideId "14108100"]
[BlackFideId "2613280"]
[WhiteElo "2408"]
[BlackElo "2707"]
[Result "0-1"]
[Round "02"]
[TimeControl "180+1"]
[Date "2022.06.29"]
[WhiteClock "0:00:02"]
[BlackClock "0:00:15"]

1. g3 {[%clk 0:03:00]}  c5 {[%clk 0:02:59]} 2. Bg2 {[%clk 0:03:01]}  Nc6 {[%clk 0:03:00]} 3. c4 {[%clk 0:03:01]}  g6 {[%clk 0:03:00]} 4. Nf3 {[%clk 0:03:01]}  Bg7 {[%clk 0:03:00]} 5. O-O {[%clk 0:03:02]}  e5 {[%clk 0:03:00]} 6. Nc3 {[%clk 0:03:01]}  d6 {[%clk 0:03:01]} 7. Ne1 {[%clk 0:03:01]}  Be6 {[%clk 0:03:01]} 8. Nd5 {[%clk 0:02:54]}  Nge7 {[%clk 0:03:00]} 9. Nc2 {[%clk 0:02:52]}  O-O {[%clk 0:02:59]} 10. Nce3 {[%clk 0:02:51]}  Rb8 {[%clk 0:02:58]} 11. d3 {[%clk 0:02:48]}  a6 {[%clk 0:02:58]} 12. Nxe7+ {[%clk 0:02:39]}  Nxe7 {[%clk 0:02:56]} 13. b3 {[%clk 0:02:25]}  f5 {[%clk 0:02:42]} 14. Bb2 {[%clk 0:02:24]}  Rf7 {[%clk 0:02:20]} 15. a4 {[%clk 0:02:13]}  f4 {[%clk 0:02:04]} 16. Nd5 {[%clk 0:02:12]}  Nxd5 {[%clk 0:02:00]} 17. cxd5 {[%clk 0:01:58]}  Bg4 {[%clk 0:01:51]} 18. Be4 {[%clk 0:01:25]}  Bh3 {[%clk 0:01:42]} 19. Re1 {[%clk 0:01:22]}  Qg5 {[%clk 0:01:37]} 20. Qd2 {[%clk 0:01:05]}  Rbf8 {[%clk 0:01:31]} 21. Rf1 {[%clk 0:00:33]}  h5 {[%clk 0:01:21]} 22. Kh1 {[%clk 0:00:26]}  h4 {[%clk 0:00:56]} 23. gxh4 {[%clk 0:00:18]}  Qxh4 {[%clk 0:00:57]} 24. f3 {[%clk 0:00:15]}  Bxf1 {[%clk 0:00:39]} 25. Rxf1 {[%clk 0:00:14]}  g5 {[%clk 0:00:39]} 26. Rg1 {[%clk 0:00:13]}  Bf6 {[%clk 0:00:39]} 27. Rg4 {[%clk 0:00:13]}  Qf2 {[%clk 0:00:38]} 28. Rg2 {[%clk 0:00:11]}  Qf1+ {[%clk 0:00:36]} 29. Rg1 {[%clk 0:00:12]}  Qh3 {[%clk 0:00:37]} 30. Qe1 {[%clk 0:00:11]}  Rg7 {[%clk 0:00:34]} 31. Qf2 {[%clk 0:00:11]}  g4 {[%clk 0:00:32]} 32. fxg4 {[%clk 0:00:11]}  Rxg4 {[%clk 0:00:32]} 33. Bf5 {[%clk 0:00:11]}  Bh4 {[%clk 0:00:23]} 34. Bxg4 {[%clk 0:00:03]}  Bxf2 {[%clk 0:00:23]} 35. Bxh3+ {[%clk 0:00:04]}  Bxg1 {[%clk 0:00:24]} 36. Kxg1 {[%clk 0:00:04]}  Kf7 {[%clk 0:00:17]} 37. Kf2 {[%clk 0:00:04]}  Rh8 {[%clk 0:00:17]} 38. Be6+ {[%clk 0:00:05]}  Ke7 {[%clk 0:00:18]} 39. Kg2 {[%clk 0:00:05]}  b5 {[%clk 0:00:17]} 40. a5 {[%clk 0:00:05]}  b4 {[%clk 0:00:17]} 41. Bc1 {[%clk 0:00:04]}  Rb8 {[%clk 0:00:17]} 42. h4 {[%clk 0:00:02]}  Rb5 {[%clk 0:00:16]} 43. h5 {[%clk 0:00:03]}  Kf6 {[%clk 0:00:16]} 44. Bg4 {[%clk 0:00:01]}  Rxa5 {[%clk 0:00:16]} 45. Bf3 {[%clk 0:00:02]}  Ra1 {[%clk 0:00:14]} 46. Bd2 {[%clk 0:00:02]}  Rb1 {[%clk 0:00:15]} 0-1


[Site "https://www.chess.com"]

[Event "Titled Tuesday Blitz June 28 Late 2022"]
[White "Ladan, Nicholas"]
[Black "Prieto Aranguren, Alain"]
[WhiteFideId "30918855"]
[BlackFideId "2268906"]
[WhiteElo "2167"]
[BlackElo "2224"]
[Result "0-1"]
[Round "02"]
[TimeControl "180+1"]
[Date "2022.06.29"]
[WhiteClock "0:00:04"]
[BlackClock "0:00:05"]

1. d4 {[%clk 0:03:00]}  d5 {[%clk 0:02:58]} 2. Bf4 {[%clk 0:03:01]}  Nf6 {[%clk 0:02:52]} 3. e3 {[%clk 0:03:01]}  e6 {[%clk 0:02:52]} 4. Nf3 {[%clk 0:03:01]}  c5 {[%clk 0:02:52]} 5. c3 {[%clk 0:02:58]}  Nc6 {[%clk 0:02:52]} 6. Nbd2 {[%clk 0:02:58]}  Be7 {[%clk 0:02:52]} 7. Bd3 {[%clk 0:02:58]}  O-O {[%clk 0:02:52]} 8. O-O {[%clk 0:02:57]}  b6 {[%clk 0:02:47]} 9. Qe2 {[%clk 0:02:55]}  Bb7 {[%clk 0:02:47]} 10. Rad1 {[%clk 0:02:54]}  Rc8 {[%clk 0:02:45]} 11. e4 {[%clk 0:02:53]}  cxd4 {[%clk 0:02:44]} 12. e5 {[%clk 0:02:41]}  Nh5 {[%clk 0:02:29]} 13. Bg3 {[%clk 0:02:05]}  Nxg3 {[%clk 0:02:28]} 14. hxg3 {[%clk 0:02:03]}  dxc3 {[%clk 0:02:27]} 15. bxc3 {[%clk 0:02:03]}  Na5 {[%clk 0:02:20]} 16. c4 {[%clk 0:01:45]}  Qc7 {[%clk 0:01:36]} 17. cxd5 {[%clk 0:01:43]}  Bxd5 {[%clk 0:01:36]} 18. Ne4 {[%clk 0:01:42]}  Bc4 {[%clk 0:01:20]} 19. Nd6 {[%clk 0:01:29]}  Bxd3 {[%clk 0:01:10]} 20. Rxd3 {[%clk 0:01:28]}  Rcd8 {[%clk 0:00:55]} 21. Rfd1 {[%clk 0:01:28]}  Nb7 {[%clk 0:00:48]} 22. Qd2 {[%clk 0:01:05]}  Nc5 {[%clk 0:00:43]} 23. Rd4 {[%clk 0:01:00]}  Qc6 {[%clk 0:00:35]} 24. Ng5 {[%clk 0:00:49]}  f6 {[%clk 0:00:20]} 25. exf6 {[%clk 0:00:40]}  Bxf6 {[%clk 0:00:15]} 26. Rg4 {[%clk 0:00:23]}  Nb7 {[%clk 0:00:12]} 27. Nxe6 {[%clk 0:00:15]}  Rxd6 {[%clk 0:00:10]} 28. Nxf8 {[%clk 0:00:06]}  Rxd2 {[%clk 0:00:10]} 29. Rxd2 {[%clk 0:00:07]}  Qc1+ {[%clk 0:00:09]} 30. Kh2 {[%clk 0:00:07]}  Qxd2 {[%clk 0:00:09]} 31. Ne6 {[%clk 0:00:08]}  Qd7 {[%clk 0:00:07]} 32. Re4 {[%clk 0:00:07]}  Qd5 {[%clk 0:00:07]} 33. Re2 {[%clk 0:00:07]}  Nc5 {[%clk 0:00:06]} 34. Nf4 {[%clk 0:00:07]}  Qd8 {[%clk 0:00:05]} 35. g4 {[%clk 0:00:05]}  a5 {[%clk 0:00:05]} 36. g3 {[%clk 0:00:05]}  a4 {[%clk 0:00:05]} 37. Nh5 {[%clk 0:00:05]}  Bc3 {[%clk 0:00:04]} 38. Re3 {[%clk 0:00:05]}  Bf6 {[%clk 0:00:04]} 39. Nf4 {[%clk 0:00:04]}  b5 {[%clk 0:00:04]} 40. Rf3 {[%clk 0:00:02]}  b4 {[%clk 0:00:04]} 41. Nh5 {[%clk 0:00:02]}  b3 {[%clk 0:00:04]} 42. axb3 {[%clk 0:00:01]}  axb3 {[%clk 0:00:05]} 43. Rf5 {[%clk 0:00:02]}  b2 {[%clk 0:00:04]} 44. Rxc5 {[%clk 0:00:02]}  b1=Q {[%clk 0:00:05]} 45. Nxf6+ {[%clk 0:00:03]}  gxf6 {[%clk 0:00:05]} 46. Rf5 {[%clk 0:00:04]}  Qdd1 {[%clk 0:00:04]} 47. Rf4 {[%clk 0:00:04]}  Qh1# {[%clk 0:00:05]} 0-1


[Site "https://www.chess.com"]

[Event "Titled Tuesday Blitz June 28 Late 2022"]
[White "Le Hetet, Nicolas"]
[Black "Voege, Tobias"]
[WhiteFideId "634824"]
[BlackFideId "1270513"]
[WhiteElo "2314"]
[BlackElo "2379"]
[Result "0-1"]
[Round "02"]
[TimeControl "180+1"]
[Date "2022.06.29"]
[WhiteClock "0:00:38"]
[BlackClock "0:00:57"]

1. e4 {[%clk 0:03:00]}  e6 {[%clk 0:02:58]} 2. d4 {[%clk 0:02:59]}  d5 {[%clk 0:02:57]} 3. e5 {[%clk 0:02:59]}  c5 {[%clk 0:02:56]} 4. c3 {[%clk 0:02:59]}  Nc6 {[%clk 0:02:56]} 5. Nf3 {[%clk 0:02:59]}  Bd7 {[%clk 0:02:55]} 6. Be2 {[%clk 0:02:56]}  Qb6 {[%clk 0:02:55]} 7. O-O {[%clk 0:02:47]}  f6 {[%clk 0:02:55]} 8. Na3 {[%clk 0:02:37]}  Nge7 {[%clk 0:02:35]} 9. Nc2 {[%clk 0:02:32]}  fxe5 {[%clk 0:02:31]} 10. Nxe5 {[%clk 0:02:31]}  Nxe5 {[%clk 0:02:26]} 11. dxe5 {[%clk 0:02:32]}  Ng6 {[%clk 0:02:22]} 12. Bh5 {[%clk 0:02:22]}  Be7 {[%clk 0:02:20]} 13. f4 {[%clk 0:02:09]}  O-O {[%clk 0:02:13]} 14. Be3 {[%clk 0:02:03]}  Nh4 {[%clk 0:01:54]} 15. b4 {[%clk 0:01:55]}  Bb5 {[%clk 0:01:44]} 16. Re1 {[%clk 0:01:40]}  Nf5 {[%clk 0:01:30]} 17. Bf2 {[%clk 0:01:39]}  Qc7 {[%clk 0:01:31]} 18. a4 {[%clk 0:01:08]}  Be8 {[%clk 0:01:24]} 19. Bf3 {[%clk 0:00:55]}  Rd8 {[%clk 0:01:10]} 20. Rb1 {[%clk 0:00:44]}  Bxa4 {[%clk 0:01:06]} 21. Qd2 {[%clk 0:00:42]}  Bxc2 {[%clk 0:01:04]} 22. Qxc2 {[%clk 0:00:42]}  cxb4 {[%clk 0:01:05]} 23. Qa4 {[%clk 0:00:40]}  a5 {[%clk 0:00:59]} 24. cxb4 {[%clk 0:00:39]}  Bxb4 {[%clk 0:00:58]} 25. Rec1 {[%clk 0:00:39]}  Qd7 {[%clk 0:00:58]} 26. Bb6 {[%clk 0:00:38]}  Qxa4 {[%clk 0:00:57]} 0-1


[Site "https://www.chess.com"]

[Event "Titled Tuesday Blitz June 28 Late 2022"]
[White "Lopez Gracia, Fernando"]
[Black "Tinmaz, Kerem"]
[WhiteFideId "2207184"]
[BlackFideId "44559151"]
[WhiteElo "2439"]
[BlackElo "1443"]
[Result "1-0"]
[Round "02"]
[TimeControl "180+1"]
[Date "2022.06.29"]
[WhiteClock "0:01:12"]
[BlackClock "0:00:02"]

1. c4 {[%clk 0:03:00]}  c5 {[%clk 0:02:58]} 2. Nf3 {[%clk 0:03:00]}  Nc6 {[%clk 0:02:57]} 3. d4 {[%clk 0:03:00]}  cxd4 {[%clk 0:02:56]} 4. Nxd4 {[%clk 0:03:01]}  g6 {[%clk 0:02:57]} 5. e4 {[%clk 0:03:01]}  Bg7 {[%clk 0:02:57]} 6. Be3 {[%clk 0:03:01]}  d6 {[%clk 0:02:56]} 7. Nc3 {[%clk 0:03:01]}  Nf6 {[%clk 0:02:56]} 8. Be2 {[%clk 0:03:02]}  O-O {[%clk 0:02:56]} 9. O-O {[%clk 0:03:03]}  Bd7 {[%clk 0:02:56]} 10. h3 {[%clk 0:03:03]}  a6 {[%clk 0:02:56]} 11. Nc2 {[%clk 0:03:01]}  Rc8 {[%clk 0:02:55]} 12. Qd2 {[%clk 0:03:01]}  Qa5 {[%clk 0:02:31]} 13. Rab1 {[%clk 0:02:58]}  Ne5 {[%clk 0:02:12]} 14. b3 {[%clk 0:02:47]}  b5 {[%clk 0:01:49]} 15. Nd5 {[%clk 0:02:33]}  Qd8 {[%clk 0:01:41]} 16. Nxf6+ {[%clk 0:02:24]}  Bxf6 {[%clk 0:01:34]} 17. cxb5 {[%clk 0:02:23]}  axb5 {[%clk 0:01:18]} 18. Bh6 {[%clk 0:02:21]}  Bg7 {[%clk 0:01:06]} 19. Bxg7 {[%clk 0:02:22]}  Kxg7 {[%clk 0:01:07]} 20. Nd4 {[%clk 0:02:22]}  Qb6 {[%clk 0:00:58]} 21. Kh2 {[%clk 0:02:19]}  b4 {[%clk 0:00:54]} 22. Rfc1 {[%clk 0:02:11]}  Nc6 {[%clk 0:00:53]} 23. Nxc6 {[%clk 0:02:07]}  Bxc6 {[%clk 0:00:50]} 24. f3 {[%clk 0:02:05]}  h5 {[%clk 0:00:25]} 25. Rc4 {[%clk 0:02:02]}  Rb8 {[%clk 0:00:21]} 26. a3 {[%clk 0:01:58]}  bxa3 {[%clk 0:00:19]} 27. Qc3+ {[%clk 0:01:58]}  Kg8 {[%clk 0:00:18]} 28. Rxc6 {[%clk 0:01:59]}  Qf2 {[%clk 0:00:18]} 29. Qc2 {[%clk 0:01:50]}  h4 {[%clk 0:00:08]} 30. Ra1 {[%clk 0:01:48]}  Ra8 {[%clk 0:00:04]} 31. Bf1 {[%clk 0:01:44]}  Qg3+ {[%clk 0:00:03]} 32. Kh1 {[%clk 0:01:44]}  Qe5 {[%clk 0:00:02]} 33. Qc3 {[%clk 0:01:40]}  Qg3 {[%clk 0:00:02]} 34. b4 {[%clk 0:01:39]}  Qf2 {[%clk 0:00:01]} 35. Qc2 {[%clk 0:01:35]}  Qd4 {[%clk 0:00:02]} 36. Qc3 {[%clk 0:01:19]}  Qf2 {[%clk 0:00:02]} 37. Bc4 {[%clk 0:01:12]} 1-0


[Site "https://www.chess.com"]